bitfinex-derivatives/quotes_BTCF0:USTF0_20250330
["timestamp","ask_amount","ask_price","bid_price","bid_amount"]
[1743335121503,0.0701,83087.0,83086.0,2.61755627]
[1743335123595,0.0701,83087.0,83086.0,2.61655627]
[1743335123795,0.0701,83087.0,83086.0,2.61155627]
[1743335124000,0.0701,83087.0,83086.0,2.61655627]
[1743335124905,0.0701,83087.0,83086.0,2.61555627]
[1743335126508,0.0701,83087.0,83086.0,2.61155627]
[1743335126710,0.0701,83087.0,83086.0,2.61555627]
[1743335127302,0.0701,83087.0,83086.0,2.61155627]
[1743335127503,0.0701,83087.0,83086.0,2.61455627]
[1743335132705,0.0701,83087.0,83086.0,2.61451627]
[1743335132912,0.0701,83087.0,83086.0,2.49671627]
[1743335133125,0.0701,83087.0,83086.0,2.61451627]
[1743335134704,0.0701,83087.0,83086.0,2.61151627]
[1743335134905,0.0701,83087.0,83086.0,2.61451627]
[1743335135612,0.0701,83087.0,83086.0,2.60267031]
[1743335136118,0.0701,83087.0,83086.0,2.61441372]
[1743335140215,0.0701,83087.0,83086.0,2.60267031]
[1743335142112,0.0701,83087.0,83086.0,2.48491031]
[1743335142318,0.0701,83087.0,83086.0,2.60267031]
[1743335143516,0.0701,83087.0,83086.0,2.24187031]
[1743335144023,0.0701,83087.0,83086.0,2.23887031]
[1743335144211,0.1041,83087.0,83086.0,2.24187031]
[1743335144412,0.1041,83087.0,83086.0,1.88107031]
[1743335144612,0.1041,83087.0,83086.0,2.24187031]
[1743335146915,0.1041,83087.0,83086.0,2.12411031]
[1743335147117,0.1155132,83087.0,83086.0,2.12411031]
[1743335147917,0.11557235,83087.0,83086.0,2.12411031]
[1743335148125,0.11557235,83087.0,83086.0,2.12111031]
[1743335148426,0.11557235,83087.0,83086.0,2.12311031]
[1743335149717,0.11557235,83087.0,83086.0,1.76231031]
[1743335150323,0.11557235,83087.0,83086.0,1.76131031]
[1743335150719,0.11557235,83087.0,83086.0,1.75931031]
[1743335150920,0.11557235,83087.0,83086.0,1.76131031]
[1743335152320,0.11557235,83087.0,83086.0,0.00488]
[1743335152628,0.11637235,83087.0,83083.0,0.21582497]
[1743335152823,0.01147235,83086.0,83085.0,8e-05]
[1743335153131,0.37311235,83086.0,83085.0,0.0008]
[1743335153327,0.44721235,83086.0,83085.0,0.0008]
[1743335153921,0.44721235,83086.0,83083.0,0.15822497]
[1743335154123,0.01147235,83085.0,83083.0,0.15890497]
[1743335154431,0.01039235,83085.0,83083.0,0.15890497]
[1743335154629,0.00092,83085.0,83083.0,0.15890497]
[1743335155031,0.15092,83085.0,83083.0,0.10130497]
[1743335155328,0.11776,83084.0,83083.0,0.10130497]
[1743335155522,0.11872001,83084.0,83083.0,0.10130497]
[1743335155724,0.26872001,83084.0,83083.0,0.10730497]
[1743335156023,0.26872001,83084.0,83083.0,0.00668]
[1743335156229,0.26872001,83084.0,83083.0,0.006]
[1743335156429,0.26872001,83084.0,83083.0,0.003]
[1743335156629,0.26872001,83084.0,83083.0,0.005]
[1743335157218,0.26872001,83084.0,83083.0,0.003]
[1743335157423,0.26872001,83084.0,83083.0,0.002]
[1743335158228,0.30522001,83084.0,83083.0,0.002]
[1743335158627,0.66602001,83084.0,83083.0,0.002]
[1743335160333,0.78638085,83084.0,83078.0,0.00018053]
[1743335160536,0.0353,83083.0,83078.0,0.00018053]
[1743335160736,0.03622,83083.0,83078.0,0.00018053]
[1743335161034,0.3973,83082.0,83078.0,0.00018053]
[1743335161234,0.51766084,83082.0,83078.0,0.00018053]
[1743335161436,0.0377,83081.0,83078.0,0.00218053]
[1743335161636,0.0387,83081.0,83078.0,0.00218053]
[1743335161836,0.0375,83080.0,83078.0,0.00218053]
[1743335162134,0.15886518,83080.0,83078.0,0.00218053]
[1743335162336,0.0377,83079.0,83078.0,0.00518053]
[1743335162533,0.03862,83079.0,83078.0,0.00518053]
[1743335162722,0.22612,83079.0,83078.0,0.00518053]
[1743335163142,0.34648736,83079.0,83078.0,0.00518053]
[1743335164537,0.3579584,83079.0,83078.0,0.00518053]
[1743335165236,0.41645222,83079.0,83078.0,0.00518053]
[1743335166030,0.26384486,83079.0,83078.0,0.00518053]
[1743335168232,0.205308,83079.0,83078.0,0.00518053]
[1743335170440,0.243708,83079.0,83078.0,0.00518053]
[1743335173632,0.087548,83079.0,83078.0,0.00518053]
[1743335173833,0.00092,83079.0,83078.0,0.00518053]
[1743335174832,0.00092,83079.0,83078.0,0.00582053]
[1743335175636,0.00092,83079.0,83078.0,1.50582053]
[1743335175835,0.17944046,83084.0,83078.0,1.50582053]
[1743335176246,0.17944046,83084.0,83079.0,0.1095]
[1743335176447,0.17944046,83084.0,83079.0,0.11014]
[1743335177247,0.54024046,83084.0,83079.0,0.11014]
[1743335177431,0.04706259,83083.0,83079.0,0.07664]
[1743335177637,0.01136259,83082.0,83079.0,0.07664]
[1743335177833,0.01228259,83082.0,83079.0,0.07664]
[1743335178050,0.08396259,83081.0,83079.0,0.07664]
[1743335178238,0.01136259,83080.0,83079.0,0.07664]
[1743335178439,0.01228259,83080.0,83079.0,0.07664]
[1743335178640,0.04798259,83080.0,83079.0,0.07664]
[1743335178838,0.04798259,83080.0,83079.0,0.07864]
[1743335180450,0.04798259,83080.0,83079.0,0.07664]
[1743335180651,0.04798259,83080.0,83079.0,0.078]
[1743335181050,0.04798259,83080.0,83079.0,0.041]
[1743335183847,0.04798259,83080.0,83079.0,0.004]
[1743335184046,0.16834922,83080.0,83079.0,0.004]
[1743335185046,0.16834922,83080.0,83079.0,0.0406]
[1743335185455,0.16834922,83080.0,83079.0,0.0754]
[1743335185666,0.04798259,83080.0,83079.0,0.1112]
[1743335187759,0.08538259,83080.0,83079.0,0.0406]
[1743335187950,0.12158259,83080.0,83079.0,0.0406]
[1743335189055,0.12158259,83080.0,83079.0,0.004]
[1743335189056,0.30049129,83080.0,83079.0,0.004]
[1743335189946,0.66129129,83080.0,83079.0,0.004]
[1743335195766,0.80355753,83080.0,83079.0,0.004]
[1743335197470,0.80363447,83080.0,83079.0,0.004]
[1743335199669,0.66136823,83080.0,83079.0,0.004]
[1743335202870,0.30056823,83080.0,83079.0,0.004]
[1743335203068,0.66136823,83080.0,83079.0,0.004]
[1743335203269,0.77908823,83080.0,83079.0,0.004]
[1743335204168,0.77908823,83080.0,83068.0,0.0738]
[1743335204468,0.3608,83073.0,83068.0,0.0383]
[1743335204678,0.08203953,83072.0,83068.0,0.0383]
[1743335204857,0.01143953,83071.0,83068.0,0.0383]
[1743335205064,0.05055953,83071.0,83068.0,0.0383]
[1743335205373,0.08203953,83070.0,83068.0,0.0762]
[1743335205672,0.01143953,83069.0,83068.0,0.0762]
[1743335205869,0.01247954,83069.0,83068.0,0.0762]
[1743335206069,0.08307954,83069.0,83068.0,0.0762]
[1743335206572,0.08307954,83069.0,83068.0,0.0852]
[1743335207173,0.08307954,83069.0,83068.0,0.0772]
[1743335207366,0.08307954,83069.0,83068.0,0.0792]
[1743335207566,0.08307954,83069.0,83068.0,0.003]
[1743335207771,0.08307954,83069.0,83068.0,0.0377]
[1743335207972,0.08307954,83069.0,83068.0,0.0729]
[1743335208275,0.08307954,83069.0,83068.0,0.0719]
[1743335209373,0.14162161,83069.0,83068.0,0.0709]
[1743335210180,0.14162161,83069.0,83068.0,0.0699]
[1743335211182,0.14162161,83069.0,83068.0,0.0719]
[1743335211477,0.13018208,83069.0,83068.0,0.0719]
[1743335211777,0.14166648,83069.0,83068.0,0.0719]
[1743335212565,0.14166648,83069.0,83064.0,8e-05]
[1743335212783,0.0114844,83068.0,83064.0,8e-05]
[1743335212969,0.0114844,83067.0,83064.0,8e-05]
[1743335213171,0.0114844,83067.0,83061.0,0.00018053]
[1743335213172,0.0114844,83066.0,83061.0,0.00018053]
[1743335213374,0.31265,83062.0,83061.0,0.00018053]
[1743335213580,0.4428544,83062.0,83061.0,0.00018053]
[1743335214082,0.4418544,83062.0,83061.0,0.00018053]
[1743335214482,0.4418544,83062.0,83061.0,0.00118053]
[1743335215370,0.4418544,83062.0,83061.0,0.03708053]
[1743335215571,0.4418544,83062.0,83061.0,0.03908053]
[1743335216676,0.4910044,83062.0,83061.0,0.03908053]
[1743335217076,0.54954647,83062.0,83061.0,0.03908053]
[1743335217671,0.55845729,83062.0,83061.0,0.03908053]
[1743335218482,0.19765729,83062.0,83061.0,0.03908053]
[1743335218678,0.55845729,83062.0,83061.0,0.03908053]
[1743335220785,0.67885001,83062.0,83061.0,0.03908053]
[1743335222188,0.67885001,83062.0,83061.0,0.07348053]
[1743335222683,0.67885001,83062.0,83061.0,0.11088053]
[1743335225787,0.82500774,83062.0,83061.0,0.11088053]
[1743335226375,0.82500774,83062.0,83061.0,0.03908053]
[1743335227280,0.82496774,83062.0,83061.0,0.03908053]
[1743335228980,0.81343512,83062.0,83061.0,0.03908053]
[1743335229180,0.82492502,83062.0,83061.0,0.03908053]
[1743335229892,0.67876729,83062.0,83061.0,0.03908053]
[1743335230385,0.78686729,83062.0,83061.0,0.03908053]
[1743335232083,0.71386729,83062.0,83061.0,0.03908053]
[1743335232288,0.71386729,83062.0,83061.0,0.07688053]
[1743335232680,0.44069457,83062.0,83061.0,0.07688053]
[1743335234384,0.07989457,83062.0,83061.0,0.07688053]
[1743335235482,0.07889457,83062.0,83061.0,0.07752053]
[1743335237086,0.07883631,83062.0,83061.0,0.07752053]
[1743335237284,0.07885606,83062.0,83061.0,0.07752053]
[1743335238789,0.02031399,83062.0,83061.0,0.07752053]
[1743335243189,0.02036416,83062.0,83061.0,0.07752053]
[1743335246099,0.02128416,83062.0,83061.0,0.07752053]
[1743335246794,0.0097826,83062.0,83061.0,0.07752053]
[1743335247297,0.0097826,83062.0,83061.0,1.57752053]
[1743335247600,0.14374865,83063.0,83061.0,1.57752053]
[1743335248698,0.15265642,83063.0,83061.0,1.57752053]
[1743335248994,0.1167116,83063.0,83061.0,1.57752053]
[1743335250596,0.10780383,83063.0,83062.0,0.25643031]
[1743335250897,0.10780383,83063.0,83062.0,0.25711031]
[1743335251094,0.10780383,83063.0,83062.0,0.33211031]
[1743335251798,0.10780383,83063.0,83062.0,0.33511031]
[1743335251999,0.10872383,83063.0,83062.0,0.33511031]
[1743335252202,0.10872383,83063.0,83062.0,1.83511031]
[1743335252398,0.10780383,83063.0,83062.0,1.83511031]
[1743335252798,0.10780383,83064.0,83062.0,1.83511031]
[1743335253001,0.11693293,83064.0,83062.0,1.83511031]
[1743335253899,0.11693293,83064.0,83062.0,1.84705739]
[1743335254303,0.11693293,83064.0,83063.0,0.11764]
[1743335254500,0.11693293,83064.0,83063.0,0.11832]
[1743335254704,0.11693293,83064.0,83063.0,0.19282]
[1743335256309,0.11693293,83064.0,83063.0,0.19382]
[1743335257208,0.11693293,83064.0,83063.0,0.19482]
[1743335257512,0.0091291,83064.0,83063.0,0.19482]
[1743335257703,0.00092,83064.0,83063.0,0.19482]
[1743335257896,0.00092,83064.0,83063.0,1.69482]
[1743335258101,0.10780383,83066.0,83063.0,1.69482]
[1743335258600,0.0353,83065.0,83063.0,1.69482]
[1743335259207,0.10780383,83066.0,83063.0,1.69482]
[1743335259409,0.10780383,83066.0,83063.0,1.69382]
[1743335259609,0.10780383,83066.0,83063.0,1.69482]
[1743335259809,0.0355,83065.0,83063.0,1.69482]
[1743335260314,0.0815433,83066.0,83063.0,1.69482]
[1743335260723,0.0815433,83066.0,83063.0,1.69382]
[1743335260932,0.0815433,83066.0,83063.0,1.69482]
[1743335261225,0.14374865,83069.0,83063.0,1.69482]
[1743335261422,0.14374865,83069.0,83067.0,0.3608]
[1743335261625,0.14374865,83069.0,83068.0,0.1083]
[1743335262019,0.14374865,83069.0,83068.0,0.10894]
[1743335262215,0.14374865,83069.0,83068.0,1.6083]
[1743335263315,0.17924865,83069.0,83068.0,1.6083]
[1743335264726,0.18024865,83069.0,83068.0,1.6083]
[1743335265230,0.0365,83069.0,83068.0,1.6083]
[1743335265527,0.071,83069.0,83068.0,1.6083]
[1743335267517,0.0365,83069.0,83068.0,1.6083]
[1743335267717,0.0365,83069.0,83068.0,1.60894]
[1743335267921,0.001,83069.0,83068.0,2.01537031]
[1743335271823,0.001,83069.0,83068.0,1.86537031]
[1743335272024,0.001,83069.0,83068.0,2.01537031]
[1743335273337,0.001,83069.0,83068.0,1.86537031]
[1743335274835,0.001,83069.0,83068.0,1.87637031]
[1743335276234,0.001,83069.0,83068.0,1.87037031]
[1743335276432,0.001,83069.0,83068.0,1.87637031]
[1743335276938,0.0371,83072.0,83068.0,1.87137031]
[1743335277236,0.0371,83072.0,83069.0,0.25643031]
[1743335277423,0.0371,83072.0,83069.0,0.25707031]
[1743335277622,0.0371,83072.0,83071.0,1.5]
[1743335277936,0.0371,83072.0,83071.0,1.50068]
[1743335278127,0.0371,83072.0,83071.0,1.57318]
[1743335280135,0.0371,83072.0,83071.0,1.57918]
[1743335280332,0.0381,83072.0,83071.0,1.58418]
[1743335281035,0.0371,83072.0,83071.0,1.58418]
[1743335281230,0.0371,83072.0,83071.0,1.70174]
[1743335283132,0.00018053,83078.0,83071.0,1.95817031]
[1743335283334,0.00018053,83078.0,83077.0,0.3608]
[1743335283532,0.00018053,83078.0,83077.0,0.36144]
[1743335283930,0.00018053,83078.0,83077.0,1.86144]
[1743335284828,0.00018053,83078.0,83077.0,1.86544]
[1743335285024,0.00018053,83078.0,83077.0,1.86844]
[1743335286330,0.00018053,83078.0,83077.0,1.86444]
[1743335286540,0.00018053,83078.0,83077.0,1.87044]
[1743335287246,0.00018053,83078.0,83077.0,1.86744]
[1743335287541,0.00018053,83078.0,83077.0,1.86444]
[1743335287742,0.00018053,83078.0,83077.0,1.86744]
[1743335287940,0.00018053,83078.0,83077.0,1.86444]
[1743335288240,0.00018053,83078.0,83077.0,1.87044]
[1743335288946,0.00018053,83078.0,83077.0,2.12987031]
[1743335289438,0.00018053,83078.0,83077.0,2.12387031]
[1743335289643,0.00018053,83078.0,83077.0,2.12787031]
[1743335289845,0.00018053,83078.0,83077.0,2.23697031]
[1743335290641,0.00018053,83078.0,83077.0,2.23497031]
[1743335291042,0.00018053,83078.0,83077.0,2.23097031]
[1743335291438,0.00018053,83078.0,83077.0,2.23397031]
[1743335291635,0.00018053,83078.0,83077.0,2.15997031]
[1743335291835,0.00018053,83078.0,83077.0,2.15697031]
[1743335292039,0.00018053,83078.0,83077.0,2.15997031]
[1743335293045,0.00018053,83078.0,83077.0,2.19697031]
[1743335293343,0.00018053,83078.0,83077.0,2.38167031]
[1743335293839,0.00018053,83078.0,83077.0,2.42881739]
[1743335294032,0.00018053,83078.0,83077.0,2.69881739]
[1743335295843,0.00018053,83078.0,83077.0,2.65167031]
[1743335296246,0.00018053,83078.0,83077.0,2.70080618]
[1743335296445,0.00018053,83078.0,83077.0,2.65367031]
[1743335296945,0.00018053,83078.0,83077.0,2.65567031]
[1743335297433,0.00018053,83078.0,83077.0,2.65067031]
[1743335297638,0.0004,83092.0,83078.0,0.25643031]
[1743335297846,0.0004,83092.0,83091.0,0.7216]
[1743335298030,0.0004,83092.0,83091.0,0.8398]
[1743335298433,0.0004,83092.0,83091.0,2.3398]
[1743335299446,0.0004,83092.0,83091.0,2.3418]
[1743335301247,0.0004,83092.0,83091.0,2.3428]
[1743335302039,0.0004,83092.0,83091.0,1.6212]
[1743335302347,0.0004,83092.0,83091.0,2.3428]
[1743335303444,0.0004,83092.0,83091.0,2.35464326]
[1743335303640,0.0004,83092.0,83091.0,2.61107357]
[1743335304134,0.0004,83092.0,83091.0,2.67837357]
[1743335314459,0.0004,83092.0,83091.0,3.20837357]
[1743335314754,0.0004,83092.0,83091.0,3.35837357]
[1743335315153,0.0004,83092.0,83091.0,2.82837357]
[1743335317558,0.0004,83092.0,83091.0,2.67837357]
[1743335318161,0.0004,83092.0,83091.0,2.82837357]
[1743335319262,0.0004,83092.0,83091.0,3.21733019]
[1743335319447,0.0004,83092.0,83091.0,3.06733019]
[1743335319848,0.0004,83092.0,83091.0,3.11449599]
[1743335320054,0.0346,83098.0,83091.0,3.11449599]
[1743335320251,0.0346,83098.0,83091.0,1.56733019]
[1743335320656,0.0346,83098.0,83097.0,1.5]
[1743335320962,0.0346,83098.0,83097.0,2.47867031]
[1743335321557,0.0346,83098.0,83097.0,1.75707031]
[1743335321749,0.0346,83098.0,83097.0,2.47867031]
[1743335323356,0.0346,83098.0,83097.0,2.77584114]
[1743335323556,1e-08,83100.0,83097.0,2.77584114]
[1743335323758,1e-08,83100.0,83098.0,0.14717083]
[1743335323952,1e-08,83100.0,83099.0,0.04717083]
[1743335324158,1e-08,83100.0,83099.0,0.27785083]
[1743335324358,1e-08,83100.0,83099.0,0.34525083]
[1743335324557,1e-08,83100.0,83099.0,1.79808]
[1743335324965,1e-08,83100.0,83099.0,1.84525495]
[1743335325363,1e-08,83100.0,83099.0,2.07525495]
[1743335325959,1e-08,83100.0,83099.0,2.07725495]
[1743335326555,1e-08,83100.0,83099.0,2.46621157]
[1743335326762,1e-08,83100.0,83099.0,2.89800302]
[1743335326962,1e-08,83100.0,83099.0,3.15443333]
[1743335327663,1e-08,83100.0,83099.0,4.02823333]
[1743335328170,1e-08,83100.0,83099.0,4.14567333]
[1743335330275,0.0356,83121.0,83100.0,0.2564303]
[1743335330471,0.0356,83121.0,83107.0,0.3608]
[1743335330669,0.0356,83121.0,83107.0,0.36144]
[1743335330870,0.0356,83120.0,83107.0,1.86144]
[1743335331271,0.0324,83119.0,83107.0,1.86144]
[1743335331575,0.00011916,83116.0,83107.0,1.86144]
[1743335332072,0.00011916,83116.0,83107.0,1.86244]
[1743335332676,0.03401916,83116.0,83107.0,2.25139662]
[1743335333176,0.0678,83115.0,83107.0,2.32069662]
[1743335333470,0.0678,83115.0,83107.0,2.32169662]
[1743335333675,0.0339,83114.0,83107.0,2.57169662]
[1743335334878,0.0324,83113.0,83107.0,2.58062333]
[1743335335368,0.0316,83112.0,83107.0,2.58062333]
[1743335335675,0.0324,83113.0,83111.0,0.3608]
[1743335335976,0.0324,83113.0,83112.0,0.3253303]
[1743335336170,0.0324,83113.0,83112.0,0.3259703]
[1743335336384,0.0324,83113.0,83112.0,1.9434103]
[1743335340177,0.00011916,83116.0,83112.0,1.9434103]
[1743335340476,0.00011916,83116.0,83113.0,0.2564303]
[1743335340673,0.00011916,83116.0,83114.0,0.1004]
[1743335340876,0.00011916,83116.0,83114.0,0.37104]
[1743335341774,0.00011916,83116.0,83115.0,1.5]
[1743335341981,0.00011916,83116.0,83115.0,1.50064]
[1743335342281,0.00011916,83116.0,83115.0,1.56784]
[1743335343171,0.00011916,83116.0,83115.0,1.92973166]
[1743335343582,0.00011916,83116.0,83115.0,1.92773166]
[1743335343882,0.00011916,83116.0,83115.0,1.92973166]
[1743335344075,0.00011916,83116.0,83115.0,1.93273166]
[1743335344668,0.00011916,83116.0,83115.0,2.18916196]
[1743335345974,0.00011916,83116.0,83115.0,2.18716196]
[1743335346178,0.00011916,83116.0,83115.0,2.18916196]
[1743335346383,0.00011916,83116.0,83115.0,2.42916196]
[1743335349779,0.00011916,83116.0,83115.0,2.47633886]
[1743335352286,0.00011916,83116.0,83115.0,2.42916196]
[1743335352978,0.00011916,83116.0,83115.0,2.47634146]
[1743335353183,0.00011916,83116.0,83115.0,3.19794146]
[1743335353392,0.00011916,83116.0,83115.0,3.22847171]
[1743335354592,0.0668,83122.0,83115.0,3.22847171]
[1743335354784,0.0668,83122.0,83116.0,0.0471795]
[1743335355090,0.0668,83122.0,83121.0,0.7216]
[1743335355293,0.0668,83122.0,83121.0,2.33964]
[1743335356590,0.0668,83122.0,83121.0,2.5960703]
[1743335357383,0.0668,83122.0,83121.0,2.5970703]
[1743335359294,0.0668,83122.0,83121.0,2.60917606]
[1743335359697,0.0668,83122.0,83121.0,2.65639922]
[1743335359996,0.0668,83122.0,83121.0,3.04682113]
[1743335363095,0.0668,83122.0,83121.0,3.11382113]
[1743335365293,0.0668,83122.0,83121.0,3.54617117]
[1743335367098,0.0668,83122.0,83121.0,2.82457117]
[1743335367302,0.0668,83122.0,83121.0,3.54617117]
[1743335368806,0.0668,83122.0,83121.0,3.42881117]
[1743335369099,0.0668,83122.0,83121.0,3.08072113]
[1743335369296,0.0668,83122.0,83121.0,3.11392113]
[1743335369699,0.0668,83122.0,83121.0,3.08072113]
[1743335370005,0.0668,83122.0,83121.0,3.08472113]
[1743335371599,0.0668,83122.0,83121.0,3.08772113]
[1743335371810,0.0668,83122.0,83121.0,2.93646113]
[1743335371995,0.0668,83122.0,83121.0,3.00659797]
[1743335372304,0.0668,83122.0,83121.0,3.01059797]
[1743335372601,0.0668,83122.0,83121.0,3.00459797]
[1743335372997,0.0668,83122.0,83121.0,3.01059797]
[1743335373502,0.0668,83122.0,83121.0,3.04209797]
[1743335373698,0.0668,83122.0,83121.0,3.51215638]
[1743335374506,0.0668,83122.0,83121.0,3.54645638]
[1743335375706,0.0668,83122.0,83121.0,3.53945638]
[1743335375909,0.0668,83122.0,83121.0,3.54545638]
[1743335376500,0.0668,83122.0,83121.0,3.53945638]
[1743335376797,0.0668,83122.0,83121.0,3.54545638]
[1743335377012,0.0668,83122.0,83121.0,3.12268676]
[1743335378299,0.0668,83122.0,83121.0,3.08838676]
[1743335378603,0.0668,83122.0,83121.0,3.04109797]
[1743335379006,0.0668,83122.0,83121.0,3.03609797]
[1743335379308,0.0668,83122.0,83121.0,3.07609797]
[1743335379898,0.0668,83122.0,83121.0,3.07509797]
[1743335381714,0.0668,83122.0,83121.0,2.35349797]
[1743335382012,0.0668,83122.0,83121.0,3.12238711]
[1743335382910,0.0668,83122.0,83121.0,2.88723797]
[1743335383213,0.0668,83122.0,83121.0,2.99845221]
[1743335383406,0.0668,83122.0,83121.0,2.99245221]
[1743335383607,0.0668,83122.0,83121.0,2.99845221]
[1743335384213,0.0668,83122.0,83121.0,1.49245221]
[1743335384417,0.0668,83122.0,83121.0,1.49845221]
[1743335384713,0.0668,83122.0,83121.0,2.99845221]
[1743335385017,0.0668,83122.0,83121.0,2.99849221]
[1743335386118,0.0668,83122.0,83121.0,2.99749221]
[1743335386316,0.0668,83122.0,83121.0,2.63669221]
[1743335386516,0.0668,83122.0,83121.0,2.26489221]
[1743335386717,0.0668,83122.0,83121.0,2.63469221]
[1743335387219,0.0668,83122.0,83121.0,2.63369221]
[1743335387512,0.0668,83122.0,83121.0,2.63169221]
[1743335387713,0.2168,83122.0,83121.0,2.51433221]
[1743335388222,0.2168,83122.0,83121.0,0.65153221]
[1743335388721,0.2168,83122.0,83121.0,0.00468]
[1743335389310,0.2168,83122.0,83121.0,0.00368]
[1743335389912,0.2168,83122.0,83121.0,0.00268]
[1743335390710,0.2168,83122.0,83121.0,0.36348]
[1743335391116,0.2168,83122.0,83121.0,0.36248]
[1743335392511,0.2168,83122.0,83121.0,0.00168]
[1743335392819,0.2168,83122.0,83121.0,0.36248]
[1743335393421,0.2168,83122.0,83121.0,0.00168]
[1743335393622,0.2168,83122.0,83121.0,0.36248]
[1743335397416,0.0668,83122.0,83121.0,0.00168]
[1743335397913,0.0668,83122.0,83121.0,0.36248]
[1743335399124,0.0004,83124.0,83121.0,0.45998]
[1743335406319,0.0004,83124.0,83121.0,0.7164103]
[1743335409723,0.0004,83124.0,83121.0,0.93265957]
[1743335412822,0.0004,83124.0,83121.0,1.00474267]
[1743335413017,0.0004,83124.0,83122.0,0.11732]
[1743335413223,0.0004,83124.0,83122.0,0.11796]
[1743335413524,0.0004,83124.0,83123.0,0.79]
[1743335413725,0.0004,83124.0,83123.0,0.79064]
[1743335415424,0.0004,83124.0,83123.0,0.06904]
[1743335415631,0.0004,83124.0,83123.0,0.79064]
[1743335416036,0.0004,83124.0,83123.0,0.79464]
[1743335416734,0.0004,83124.0,83123.0,0.79764]
[1743335417938,0.0004,83124.0,83123.0,1.0540703]
[1743335421139,0.0004,83124.0,83123.0,2.5540703]
[1743335426930,0.0004,83124.0,83123.0,2.94093417]
[1743335429041,0.0004,83124.0,83123.0,2.98813997]
[1743335431435,0.0004,83124.0,83123.0,3.10541997]
[1743335432932,0.0004,83124.0,83123.0,2.38381997]
[1743335433126,0.0004,83124.0,83123.0,3.10541997]
[1743335439944,0.0004,83124.0,83123.0,2.38381997]
[1743335440145,0.0004,83124.0,83123.0,3.10541997]
[1743335441132,0.0651,83137.0,83123.0,3.10541997]
[1743335441442,0.0651,83137.0,83136.0,0.3608]
[1743335441645,0.06602,83137.0,83136.0,0.47896]
[1743335441837,0.0651,83137.0,83136.0,0.47896]
[1743335442036,0.0651,83137.0,83136.0,1.97896]
[1743335444342,0.0651,83137.0,83136.0,2.2353903]
[1743335444942,0.0651,83137.0,83136.0,2.24832602]
[1743335447640,0.0651,83137.0,83136.0,2.13108602]
[1743335447843,0.0651,83137.0,83136.0,2.24832602]
[1743335449647,0.0651,83137.0,83136.0,2.13108602]
[1743335449846,0.0651,83137.0,83136.0,2.24832602]
[1743335450247,0.0651,83137.0,83136.0,1.99189572]
[1743335451258,0.0651,83137.0,83136.0,1.63109572]
[1743335451447,0.0651,83137.0,83136.0,2.22352]
[1743335451651,0.0651,83137.0,83136.0,2.34076]
[1743335451952,0.07647167,83137.0,83136.0,2.34076]
[1743335453270,0.0651,83137.0,83136.0,2.34076]
[1743335454166,0.0651,83137.0,83136.0,1.61916]
[1743335454566,0.0651,83137.0,83136.0,1.97996]
[1743335455574,0.0651,83137.0,83136.0,1.61916]
[1743335455870,0.0651,83137.0,83136.0,1.97996]
[1743335456270,0.0651,83137.0,83136.0,1.61916]
[1743335456470,0.0651,83137.0,83136.0,1.97996]
[1743335456670,0.0651,83137.0,83136.0,1.86272]
[1743335456873,0.0651,83137.0,83136.0,1.97996]
[1743335459371,0.0316,83137.0,83136.0,2.01286]
[1743335459563,0.0316,83137.0,83136.0,2.04736]
[1743335461082,0.0316,83137.0,83136.0,1.93012]
[1743335461279,0.0316,83137.0,83136.0,2.01286]
[1743335461871,0.0316,83137.0,83136.0,2.04466]
[1743335463770,0.0004,83140.0,83136.0,2.04466]
[1743335464780,0.0004,83140.0,83136.0,2.04366]
[1743335464982,0.0004,83140.0,83136.0,2.04466]
[1743335467869,0.0004,83140.0,83137.0,0.2564303]
[1743335468072,0.0004,83140.0,83137.0,0.2571103]
[1743335468281,0.0004,83140.0,83138.0,0.0658]
[1743335468585,0.0004,83140.0,83138.0,0.06644]
[1743335470770,0.0004,83140.0,83139.0,0.3608]
[1743335470975,0.0004,83140.0,83139.0,0.36144]
[1743335471276,0.0004,83140.0,83139.0,0.42994]
[1743335479583,0.0318,83140.0,83139.0,0.42994]
[1743335479890,0.0661,83140.0,83139.0,0.42994]
[1743335480591,0.0661,83140.0,83139.0,0.54714]
[1743335481582,0.07794678,83140.0,83139.0,0.42994]
[1743335481786,0.07794678,83140.0,83139.0,0.54714]
[1743335483288,0.07794678,83140.0,83139.0,0.18634]
[1743335483497,0.18605517,83140.0,83139.0,0.18634]
[1743335483687,0.18605517,83140.0,83139.0,0.54714]
[1743335485287,0.17420839,83140.0,83139.0,0.54714]
[1743335485882,0.10850839,83140.0,83139.0,0.54714]
[1743335486490,0.10850839,83140.0,83139.0,0.59440586]
[1743335486690,0.0004,83140.0,83139.0,0.59440586]
[1743335487196,0.0004,83140.0,83139.0,2.09740586]
[1743335488286,0.0004,83140.0,83139.0,2.10040586]
[1743335489990,0.0004,83140.0,83139.0,2.10240586]
[1743335490803,0.0004,83140.0,83139.0,2.48951257]
[1743335491304,0.0004,83140.0,83139.0,2.74594287]
[1743335496507,0.0004,83140.0,83139.0,2.69867701]
[1743335498903,0.0004,83140.0,83139.0,3.05947701]
[1743335502113,0.0004,83140.0,83139.0,3.41934097]
[1743335506111,0.0004,83140.0,83139.0,3.05947701]
[1743335506505,0.0004,83140.0,83139.0,2.94227701]
[1743335506703,0.0004,83140.0,83139.0,3.05939701]
[1743335507611,0.0004,83140.0,83139.0,2.94227701]
[1743335507803,0.0004,83140.0,83139.0,3.05939701]
[1743335509703,0.0004,83140.0,83139.0,2.6722903]
[1743335513407,0.0004,83140.0,83139.0,1.9506903]
[1743335513606,0.0004,83140.0,83139.0,2.6722903]
[1743335516209,0.0004,83140.0,83139.0,3.05959314]
[1743335517309,0.0004,83140.0,83139.0,3.10682355]
[1743335519509,0.0004,83140.0,83139.0,3.57688196]
[1743335520318,0.0004,83140.0,83139.0,3.50838196]
[1743335521121,0.0004,83140.0,83139.0,3.54178196]
[1743335521323,0.0004,83140.0,83139.0,3.57588196]
[1743335522525,0.0004,83140.0,83139.0,3.53869568]
[1743335523326,0.0004,83140.0,83139.0,2.81709568]
[1743335523522,0.0004,83140.0,83139.0,3.42157568]
[1743335523717,0.0004,83140.0,83139.0,3.47115568]
[1743335523921,0.0004,83140.0,83139.0,3.30684527]
[1743335524126,0.0004,83140.0,83139.0,3.42392527]